bitfinex/quotes_BTCUSD_20220207
["timestamp","ask_amount","ask_price","bid_price","bid_amount"]
[1644226585214,0.3,42329.0,42320.0,0.00110864]
[1644226585415,0.22741374,42326.0,42320.0,0.00110864]
[1644226585616,0.059102,42325.0,42320.0,0.00110864]
[1644226586014,0.38214763,42326.0,42320.0,0.00110864]
[1644226586214,0.25473389,42326.0,42320.0,0.00110864]
[1644226586614,0.07382265,42325.0,42320.0,0.00110864]
[1644226587013,0.07382265,42325.0,42320.0,0.00174593]
[1644226587014,0.13292465,42325.0,42320.0,0.00174593]
[1644226587216,0.05,42323.0,42320.0,0.00174593]
[1644226587631,0.13292465,42325.0,42320.0,0.00174593]
[1644226587858,0.05,42324.0,42320.0,0.00174593]
[1644226588059,0.05,42321.0,42320.0,0.00110864]
[1644226588257,0.05,42321.0,42320.0,0.00169897]
[1644226588462,0.23292465,42325.0,42320.0,0.00169897]
[1644226588660,0.05,42321.0,42320.0,0.00169897]
[1644226588859,0.328683,42320.0,42319.0,0.59298204]
[1644226589059,0.60091048,42320.0,42319.0,0.59298204]
[1644226589256,0.328683,42320.0,42319.0,0.59279897]
[1644226590358,0.428683,42320.0,42319.0,0.59279897]
[1644226590561,0.428683,42320.0,42319.0,0.58779897]
[1644226593407,0.70529029,42320.0,42319.0,0.58779897]
[1644226593812,0.428683,42320.0,42319.0,0.58779897]
[1644226594009,0.478683,42320.0,42319.0,0.58779897]
[1644226595258,0.525583,42320.0,42319.0,0.58779897]
[1644226596060,0.00383657,42311.0,42303.0,0.25134683]
[1644226596259,0.00328332,42311.0,42309.0,0.0046988]
[1644226599810,0.00328332,42311.0,42309.0,0.00488191]
[1644226600412,0.00328332,42311.0,42310.0,0.07894749]
[1644226600613,8.332e-05,42311.0,42310.0,0.02894749]
[1644226600814,0.09553573,42313.0,42311.0,0.75]
[1644226601212,0.09553573,42313.0,42310.0,0.0241306]
[1644226601213,0.09553573,42313.0,42310.0,0.0288294]
[1644226601413,0.09553573,42313.0,42310.0,0.02928394]
[1644226601628,0.09273573,42313.0,42310.0,0.02928394]
[1644226601814,0.10063749,42321.0,42313.0,0.75]
[1644226602016,0.10063749,42321.0,42314.0,0.328683]
[1644226602214,0.00063749,42321.0,42313.0,0.8015988]
[1644226602414,0.09281086,42325.0,42313.0,0.80178191]
[1644226602614,0.09281086,42325.0,42318.0,0.07881896]
[1644226602615,0.23914707,42322.0,42318.0,0.07881896]
[1644226602862,0.00063751,42321.0,42316.0,0.00018311]
[1644226603260,0.00063751,42321.0,42315.0,0.0006376]
[1644226603461,0.00063751,42321.0,42315.0,0.00082071]
[1644226603662,0.09281086,42325.0,42315.0,0.00018311]
[1644226603861,0.09281086,42325.0,42315.0,0.00063761]
[1644226604166,0.00063752,42321.0,42315.0,0.00082072]
[1644226604560,0.00016709,42321.0,42315.0,0.00082072]
[1644226604861,0.23095403,42324.0,42320.0,0.08530206]
[1644226605063,0.328683,42323.0,42320.0,0.08530206]
[1644226605263,0.328683,42323.0,42317.0,0.0046988]
[1644226605465,0.128683,42323.0,42317.0,0.0046988]
[1644226605863,0.122399,42321.0,42317.0,0.0046988]
[1644226606262,0.122399,42321.0,42317.0,0.0051068]
[1644226606526,0.172399,42321.0,42317.0,0.0051068]
[1644226606827,0.05,42318.0,42317.0,0.0051068]
[1644226607218,0.05,42318.0,42317.0,0.0046988]
[1644226607818,0.51167205,42319.0,42317.0,0.0046988]
[1644226608318,0.251065,42319.0,42317.0,0.0046988]
[1644226608519,0.351065,42319.0,42317.0,0.0046988]
[1644226609321,0.58403203,42319.0,42317.0,0.0046988]
[1644226609619,0.33008253,42318.0,42317.0,0.0046988]
[1644226609818,0.31017,42317.0,42316.0,0.0093976]
[1644226610018,0.5935153,42317.0,42308.0,0.01880149]
[1644226610264,0.5935153,42317.0,42308.0,0.02135233]
[1644226610465,0.251065,42317.0,42308.0,0.02135233]
[1644226610665,0.1,42317.0,42308.0,0.02135233]
[1644226611065,0.059095,42325.0,42305.0,0.30804604]
[1644226611066,0.177335,42323.0,42322.0,2.67902191]
[1644226611873,0.44847187,42323.0,42322.0,2.67902191]
[1644226612266,0.6970837,42323.0,42322.0,2.67902191]
[1644226612467,0.6970837,42323.0,42322.0,1.96968591]
[1644226612666,0.59847187,42323.0,42322.0,1.96968591]
[1644226612866,0.86983127,42323.0,42322.0,1.96968591]
[1644226613068,0.67124559,42323.0,42322.0,1.26031191]
[1644226613267,1.17057537,42323.0,42322.0,0.01545685]
[1644226613466,0.5,42322.0,42315.0,0.00017741]
[1644226613666,0.059118,42319.0,42314.0,0.01999252]
[1644226613866,0.05,42315.0,42314.0,0.01999252]
[1644226614113,0.60491554,42315.0,42314.0,0.01999252]
[1644226614312,0.70491554,42315.0,42314.0,0.01999252]
[1644226614521,0.70491554,42315.0,42301.0,0.54626737]
[1644226614813,0.70491554,42315.0,42305.0,0.01823889]
[1644226614814,0.118239,42310.0,42305.0,0.01823889]
[1644226615113,0.05,42307.0,42305.0,0.01823889]
[1644226615316,0.3,42306.0,42305.0,0.01823889]
[1644226615513,0.38013414,42306.0,42305.0,0.01823889]
[1644226615817,0.78013414,42306.0,42300.0,2.3126]
[1644226616014,0.118286,42305.0,42303.0,0.00063828]
[1644226616214,0.0969,42304.0,42300.0,1.60816266]
[1644226616413,0.0969,42304.0,42300.0,1.60316266]
[1644226616614,0.0469,42304.0,42300.0,1.60316266]
[1644226616812,0.05,42303.0,42300.0,1.60316266]
[1644226617413,0.35,42303.0,42300.0,1.60316266]
[1644226617614,0.05,42303.0,42300.0,1.60316266]
[1644226617860,0.15,42303.0,42300.0,1.60316266]
[1644226618264,0.1,42303.0,42300.0,1.60316266]
[1644226618463,0.1969,42303.0,42300.0,1.60316266]
[1644226618862,0.15,42303.0,42300.0,1.60316266]
[1644226619063,0.1969,42303.0,42300.0,1.60316266]
[1644226619265,0.15,42303.0,42300.0,1.60316266]
[1644226620065,0.1,42303.0,42300.0,1.60316266]
[1644226620668,0.1,42303.0,42301.0,0.08482227]
[1644226621914,0.518714,42307.0,42301.0,0.08482227]
[1644226622514,0.018714,42307.0,42301.0,0.08482227]
[1644226622709,0.018714,42307.0,42301.0,0.24942709]
[1644226622911,0.03943661,42307.0,42301.0,0.08482227]
[1644226623113,0.02072261,42307.0,42303.0,0.31962436]
[1644226623611,0.02072261,42307.0,42301.0,0.37457047]
[1644226624010,0.02072261,42307.0,42301.0,0.31546058]
[1644226624211,0.02072261,42307.0,42302.0,0.28514213]
[1644226625018,0.02072261,42307.0,42303.0,0.378787]
[1644226625260,0.02131631,42311.0,42303.0,0.328787]
[1644226625460,0.02131631,42311.0,42302.0,0.05]
[1644226625661,0.02131631,42311.0,42309.0,0.23190676]
[1644226627061,0.00063817,42312.0,42309.0,0.23190676]
[1644226627861,0.01996449,42315.0,42309.0,0.23190676]
[1644226628061,0.00061334,42313.0,42310.0,0.75]
[1644226628266,0.00061334,42313.0,42311.0,0.328787]
[1644226628465,0.00061334,42313.0,42312.0,0.0469]
[1644226628764,0.00061334,42313.0,42312.0,0.425687]
[1644226629017,0.19854425,42327.0,42312.0,0.375687]
[1644226629018,0.01994677,42317.0,42312.0,0.375687]
[1644226629211,0.01994677,42317.0,42316.0,0.35250296]
[1644226629412,4.677e-05,42317.0,42316.0,0.0469]
[1644226629711,0.67503128,42328.0,42316.0,0.0469]
[1644226629712,0.19854425,42327.0,42317.0,0.75]
[1644226629910,0.26196189,42328.0,42317.0,0.75]
[1644226629911,0.19854425,42328.0,42318.0,0.0469]
[1644226630313,0.19854425,42328.0,42327.0,0.26004985]
[1644226630522,0.19854425,42328.0,42327.0,0.06849792]
[1644226630523,0.44960925,42328.0,42327.0,0.06849792]
[1644226631211,0.44972931,42328.0,42327.0,0.06849792]
[1644226631611,0.49924531,42328.0,42318.0,0.0469]
[1644226631811,0.1986548,42325.0,42318.0,0.04707683]
[1644226632213,0.05,42328.0,42318.0,0.04707683]
[1644226632214,0.19866018,42326.0,42320.0,0.05]
[1644226632414,0.18299556,42329.0,42321.0,0.3469]
[1644226632613,0.02103367,42329.0,42323.0,0.328787]
[1644226632870,0.2483185,42336.0,42330.0,0.3250518]
[1644226632871,0.19866018,42336.0,42330.0,0.3250518]
[1644226633069,0.36054108,42338.0,42331.0,0.25060308]
[1644226633263,0.19866018,42338.0,42332.0,0.06678972]
[1644226633467,0.19866018,42337.0,42333.0,0.0469]
[1644226633664,0.19866018,42337.0,42333.0,0.10596745]
[1644226633865,0.3483185,42340.0,42333.0,0.10596745]
[1644226633866,0.19866018,42340.0,42333.0,0.10596745]
[1644226634069,0.1618809,42341.0,42337.0,0.3718498]
[1644226634265,0.00092406,42343.0,42337.0,0.3718498]
[1644226634266,0.16280496,42343.0,42338.0,0.0469]
[1644226634765,0.00092406,42343.0,42340.0,0.52348792]
[1644226634969,0.24866018,42350.0,42341.0,0.375687]
[1644226635166,0.05,42342.0,42341.0,0.0469]
[1644226635364,0.05063841,42343.0,42341.0,0.0469]
[1644226635566,0.00063841,42343.0,42341.0,0.0469]
[1644226635765,0.05,42342.0,42341.0,0.0469]
[1644226635966,0.00063841,42343.0,42340.0,0.19470092]
[1644226636164,0.00063841,42343.0,42336.0,0.42]
[1644226636165,0.19866018,42347.0,42342.0,0.26707645]
[1644226636365,0.24866018,42348.0,42342.0,0.26707645]
[1644226636616,0.4101994,42351.0,42342.0,0.26707645]
[1644226636617,0.0006384,42344.0,42342.0,0.26707645]
[1644226636815,0.0006384,42344.0,42342.0,0.55734695]
[1644226637016,0.0006384,42344.0,42341.0,0.23]
[1644226637412,0.19866018,42349.0,42341.0,0.23]
[1644226637413,0.04643029,42345.0,42341.0,0.23]
[1644226637614,0.3,42349.0,42341.0,0.23]
[1644226637814,0.00063839,42345.0,42341.0,0.23]
[1644226638015,0.23766229,42345.0,42341.0,0.23]
[1644226638217,0.00063839,42345.0,42341.0,0.23]
[1644226638616,0.04643029,42347.0,42341.0,0.23]
[1644226639014,0.49866018,42352.0,42343.0,0.00356971]
[1644226639015,0.04643029,42351.0,42343.0,0.00356971]
[1644226639215,0.21041932,42352.0,42347.0,0.26791119]
[1644226639414,0.01643029,42348.0,42347.0,0.26791119]
[1644226640260,0.01643029,42348.0,42347.0,0.26783919]
[1644226640462,0.01643029,42349.0,42347.0,0.26783919]
[1644226641062,0.01643029,42349.0,42344.0,0.06651159]
[1644226641462,0.01643029,42349.0,42341.0,0.23]
[1644226641766,0.01643029,42349.0,42339.0,0.0193581]
[1644226641767,0.01643029,42342.0,42339.0,0.0193581]
[1644226642365,0.251065,42341.0,42339.0,0.0193581]
[1644226642567,0.0469,42340.0,42339.0,0.0193581]
[1644226643164,0.0469,42340.0,42333.0,1.05112]
[1644226643368,0.23408902,42337.0,42333.0,1.05112]
[1644226643565,0.059086,42340.0,42333.0,1.05112]
[1644226644017,0.159086,42340.0,42334.0,0.19752742]
[1644226644613,0.21780341,42339.0,42333.0,0.70905994]
[1644226645011,0.21780341,42339.0,42335.0,0.21202595]
[1644226645213,0.21780341,42339.0,42333.0,0.70905994]
[1644226645413,0.27321277,42338.0,42333.0,0.70905994]
[1644226645716,0.251065,42337.0,42333.0,0.70905994]
[1644226646117,0.251065,42335.0,42333.0,0.70905994]
[1644226646314,0.0469,42334.0,42333.0,0.70905994]
[1644226646515,0.251065,42334.0,42333.0,0.93905994]
[1644226646717,0.1,42337.0,42333.0,0.93905994]
[1644226646718,0.059091,42336.0,42333.0,0.93905994]
[1644226648365,0.159091,42336.0,42333.0,0.93905994]
[1644226649669,0.202591,42336.0,42333.0,0.93905994]
[1644226649865,0.251065,42335.0,42333.0,0.93905994]
[1644226650166,0.0435,42334.0,42333.0,0.93905994]
[1644226650364,0.294565,42334.0,42333.0,0.93905994]
[1644226650563,0.0435,42334.0,42333.0,0.93905994]
[1644226651166,0.1435,42334.0,42333.0,0.93905994]
[1644226651628,0.1,42334.0,42333.0,0.93905994]
[1644226651825,0.1,42334.0,42333.0,1.01928006]
[1644226652224,0.1,42334.0,42333.0,1.06928006]
[1644226652424,0.1,42334.0,42333.0,1.38508068]
[1644226652623,0.1,42334.0,42333.0,0.93905994]
[1644226653023,0.059088,42340.0,42333.0,0.93905994]
[1644226653423,0.059088,42340.0,42333.0,0.93275564]
[1644226653424,0.25520915,42338.0,42333.0,0.93275564]
[1644226654025,0.25520915,42338.0,42333.0,1.01170974]
[1644226654426,0.25520915,42338.0,42334.0,0.05]
[1644226654626,0.25520915,42338.0,42333.0,1.01170974]
[1644226655128,0.1624679,42346.0,42333.0,1.06170974]
[1644226655360,0.18178736,42346.0,42333.0,1.01170974]
[1644226655559,0.01931946,42346.0,42333.0,1.01170974]
[1644226655760,0.01991482,42346.0,42333.0,1.01170974]
[1644226655961,0.23981955,42341.0,42335.0,0.25953348]
[1644226656163,0.23981955,42341.0,42333.0,0.33723628]
[1644226656367,0.23981955,42341.0,42333.0,0.25691912]
[1644226656368,0.3,42340.0,42333.0,0.25691912]
[1644226656565,0.19866018,42337.0,42314.0,0.00238324]
[1644226656764,0.53884416,42336.0,42321.0,0.00059569]
[1644226656967,0.44972518,42335.0,42327.0,0.02001077]
[1644226657163,0.0435,42334.0,42327.0,0.02001077]
[1644226657364,0.118211,42332.0,42327.0,0.02001077]
[1644226657564,0.35854121,42331.0,42327.0,0.02001077]
[1644226657969,0.41764621,42331.0,42327.0,0.02001077]
[1644226658166,0.19418183,42330.0,42327.0,0.02001077]
[1644226658363,0.294565,42329.0,42327.0,0.02001077]
[1644226659113,0.279565,42329.0,42327.0,0.25001077]
[1644226659311,0.279565,42329.0,42327.0,0.23]
[1644226659713,0.059105,42331.0,42327.0,0.23]
[1644226660111,0.159105,42331.0,42327.0,0.23]
[1644226660313,0.236073,42330.0,42327.0,0.23]
[1644226660717,0.43895137,42330.0,42327.0,0.23]
[1644226660914,0.38895137,42330.0,42327.0,0.23]
[1644226661116,0.65716037,42330.0,42327.0,0.23]
[1644226661323,0.186074,42328.0,42327.0,0.23]
[1644226661521,0.186074,42326.0,42320.0,0.01980279]
[1644226661715,0.186074,42326.0,42321.0,0.00063913]
[1644226661716,0.0435,42326.0,42321.0,0.00063913]
[1644226661917,0.186074,42325.0,42321.0,0.00063913]
[1644226662115,0.186074,42325.0,42324.0,0.05]
[1644226662319,0.1,42325.0,42324.0,0.05]
[1644226663961,0.27580134,42333.0,42324.0,0.05]
[1644226663962,0.21670434,42333.0,42324.0,0.05]
[1644226664166,0.40277834,42333.0,42329.0,0.05]
[1644226664363,0.186074,42332.0,42329.0,0.05]
[1644226664563,0.186074,42332.0,42327.0,0.242916]
[1644226664764,0.01804416,42333.0,42325.0,0.37474322]
[1644226665162,0.20451611,42334.0,42325.0,0.05]
[1644226665363,0.59106018,42336.0,42325.0,0.24700623]
[1644226665364,0.2496375,42335.0,42325.0,0.24700623]
[1644226665864,0.2496375,42335.0,42325.0,0.05]
[1644226666619,0.19866018,42336.0,42334.0,0.05]
[1644226666826,0.16187256,42338.0,42334.0,0.05]
[1644226667018,0.21837593,42339.0,42334.0,0.05]
[1644226667316,0.02161449,42336.0,42330.0,0.32955712]
[1644226667518,0.02161449,42336.0,42335.0,0.05]
[1644226667721,0.02161449,42336.0,42335.0,0.12025849]
[1644226668219,0.02161449,42336.0,42332.0,0.03818]
[1644226668819,0.02161449,42336.0,42333.0,0.01]
[1644226669218,0.19866018,42339.0,42333.0,0.01]
[1644226669423,0.19866018,42339.0,42333.0,0.53077957]
[1644226669621,0.2483185,42341.0,42333.0,0.53077957]
[1644226669622,0.19866018,42341.0,42338.0,0.03818]
[1644226670024,0.19866018,42341.0,42335.0,0.03818]
[1644226670263,0.19866018,42339.0,42336.0,0.21471594]
[1644226670463,0.19866018,42337.0,42333.0,0.24]
[1644226670668,0.7,42333.0,42321.0,0.00063919]
[1644226670869,0.01182,42328.0,42321.0,0.00063919]
[1644226671164,0.01182,42328.0,42316.0,0.7432]
[1644226671165,0.58281061,42327.0,42316.0,0.7432]
[1644226671365,0.62631061,42327.0,42321.0,0.00063913]
[1644226671566,0.210353,42323.0,42321.0,0.00063913]
[1644226671766,0.210353,42322.0,42321.0,0.00063913]
[1644226671969,0.553853,42322.0,42321.0,0.00063913]
[1644226672163,0.05532,42322.0,42321.0,0.00063913]
[1644226672363,0.23107,42322.0,42309.0,0.00017672]
[1644226672565,0.23107,42322.0,42308.0,0.03818]
[1644226672566,0.19855829,42320.0,42319.0,0.00062501]
[1644226672764,0.49871276,42320.0,42319.0,0.00062501]
[1644226672965,0.49871276,42320.0,42286.0,0.47419776]
[1644226672966,0.05912,42318.0,42286.0,0.47419776]
[1644226673167,0.05912,42318.0,42300.0,1.62347293]
[1644226673168,0.05,42312.0,42300.0,1.62347293]
[1644226673365,0.2776335,42311.0,42302.0,0.0011]
[1644226673571,0.24818062,42318.0,42302.0,0.0011]
[1644226673572,0.1236,42333.0,42310.0,0.05]
[1644226673766,0.19849784,42316.0,42311.0,1.35]
[1644226674030,0.29774676,42327.0,42316.0,0.75]
[1644226674217,0.07377332,42338.0,42326.0,0.05]
[1644226674218,0.1,42328.0,42326.0,0.05]
[1644226674417,0.1,42328.0,42320.0,0.05]
[1644226674621,0.1,42328.0,42327.0,0.05696232]
[1644226675016,0.29867779,42336.0,42327.0,0.05]
[1644226675415,0.29867779,42336.0,42318.0,0.3]
[1644226675416,0.29774676,42334.0,42318.0,0.3]
[1644226675621,0.29774676,42334.0,42308.0,0.117]
[1644226675622,0.3,42333.0,42308.0,0.117]
[1644226675818,0.3,42333.0,42311.0,0.05]
[1644226675819,0.29774676,42326.0,42311.0,0.05]
[1644226676018,0.23767331,42335.0,42312.0,0.20023772]
[1644226676019,0.20289293,42323.0,42312.0,0.20023772]
[1644226676220,0.05,42322.0,42307.0,0.3873]
[1644226676416,0.21557126,42314.0,42305.0,0.24137928]
[1644226676818,0.3,42318.0,42305.0,0.24137928]
[1644226677018,0.20678211,42319.0,42305.0,0.24137928]
[1644226677417,0.20678211,42319.0,42312.0,0.08579008]
[1644226677617,0.20678211,42319.0,42307.0,0.29280111]
[1644226677864,0.20678211,42319.0,42307.0,0.39280111]
[1644226678668,0.05,42311.0,42304.0,0.0031]
[1644226678868,0.05,42305.0,42304.0,0.0031]
[1644226679267,0.05,42309.0,42307.0,0.01971508]
[1644226679469,0.3935,42308.0,42307.0,0.01971508]
[1644226679667,1.14477654,42308.0,42307.0,0.01971508]
[1644226679870,0.94477654,42308.0,42307.0,0.01971508]
[1644226680065,0.99477654,42308.0,42307.0,0.01971508]
[1644226680468,1.05391254,42308.0,42307.0,0.01971508]
[1644226680667,1.05391254,42308.0,42302.0,0.0011]
[1644226680867,0.05,42305.0,42302.0,0.0011]
[1644226681071,0.05,42304.0,42302.0,0.0011]
[1644226681274,0.61979078,42308.0,42302.0,0.0011]
[1644226681718,0.71979078,42308.0,42302.0,0.0011]
[1644226682117,0.71979078,42308.0,42303.0,0.00063871]
[1644226682319,0.52,42308.0,42303.0,0.00063871]
[1644226682717,0.1,42308.0,42303.0,0.00063871]
[1644226682917,0.1,42308.0,42303.0,0.23928359]
[1644226683117,0.1,42308.0,42302.0,0.0011]
[1644226683319,0.1,42308.0,42303.0,0.00063871]
[1644226683518,0.07197724,42312.0,42305.0,0.21450477]
[1644226683718,0.02197724,42312.0,42305.0,0.21450477]
[1644226684519,0.02197724,42312.0,42306.0,0.00063868]
[1644226684919,0.05,42310.0,42306.0,0.00063868]
[1644226685368,0.05,42310.0,42306.0,0.28523786]
[1644226685568,0.05,42310.0,42306.0,0.28459918]
[1644226685767,0.05912,42315.0,42306.0,0.28631906]
[1644226685971,0.05912,42315.0,42306.0,0.0004058]
[1644226685972,0.05,42307.0,42306.0,0.0004058]
[1644226686168,0.21222805,42307.0,42306.0,0.0004058]
[1644226686368,0.16222805,42307.0,42306.0,0.0004058]
[1644226686669,0.16222805,42307.0,42302.0,0.02299018]
[1644226686869,0.08570221,42306.0,42304.0,0.00063913]
[1644226687471,0.22136605,42307.0,42304.0,0.00063913]
[1644226687674,0.05,42305.0,42304.0,0.00063913]
[1644226687868,0.22136605,42307.0,42302.0,0.0011]
[1644226687869,0.27136605,42307.0,42302.0,0.0011]
[1644226688267,0.27136605,42307.0,42302.0,0.00173915]
[1644226688672,0.05,42305.0,42302.0,0.00173915]
[1644226689122,0.22136605,42307.0,42302.0,0.0011]
[1644226689324,0.059138,42307.0,42302.0,0.0011]
[1644226689522,0.059138,42307.0,42302.0,0.00127259]
[1644226689923,0.05913,42308.0,42302.0,0.00127259]
[1644226690124,0.28449498,42306.0,42302.0,0.00127259]
[1644226690325,0.23449498,42306.0,42302.0,0.00127259]
[1644226690525,0.23449498,42306.0,42301.0,0.00017259]
[1644226690526,0.3,42305.0,42301.0,0.00017259]
[1644226690725,0.109137,42303.0,42301.0,0.00017259]
[1644226690921,0.109137,42303.0,42300.0,1.60333525]
[1644226690922,0.0435,42302.0,42300.0,1.60333525]
[1644226691126,0.0435,42302.0,42300.0,1.60316266]
[1644226691524,0.2338291,42301.0,42300.0,1.60316266]
[1644226691922,0.2338291,42301.0,42300.0,1.62316266]
[1644226692964,0.33693196,42302.0,42300.0,1.62316266]
[1644226692965,0.46617441,42302.0,42300.0,1.60316266]
[1644226693166,0.21,42301.0,42300.0,1.60316266]
[1644226693365,0.21,42301.0,42300.0,1.68570077]
[1644226693567,0.31,42301.0,42300.0,1.68570077]
[1644226694166,0.31,42301.0,42300.0,1.89800732]
[1644226694766,0.31,42301.0,42300.0,1.60316266]
[1644226694767,0.54369351,42301.0,42300.0,1.60316266]
[1644226694966,0.54369351,42301.0,42300.0,0.79307006]
[1644226695767,0.31,42301.0,42300.0,1.08651413]
[1644226696368,0.31,42301.0,42300.0,0.41146358]
[1644226697619,0.21,42301.0,42300.0,0.41146358]
[1644226698422,0.21,42301.0,42300.0,0.11801951]
[1644226698423,0.26,42301.0,42300.0,0.11801951]
[1644226699423,0.26,42301.0,42300.0,0.36406536]
[1644226699424,0.21,42301.0,42300.0,0.36406536]
[1644226699827,0.31,42301.0,42300.0,0.36406536]
[1644226700270,0.31,42301.0,42300.0,0.11801951]
[1644226700271,0.36,42301.0,42300.0,0.11801951]
[1644226700471,1.02194933,42301.0,42300.0,0.11801951]
[1644226700670,0.76544933,42301.0,42300.0,0.11801951]
[1644226701470,0.66544933,42301.0,42300.0,0.11801951]
[1644226701671,0.57194933,42301.0,42300.0,0.11801951]
[1644226701875,0.31,42301.0,42300.0,0.11801951]
[1644226702571,0.21,42301.0,42300.0,0.11801951]
[1644226702770,0.21,42301.0,42300.0,0.49926772]
[1644226703378,0.21,42301.0,42300.0,0.11801951]
[1644226703379,0.26,42301.0,42300.0,0.11801951]
[1644226703677,0.328291,42301.0,42300.0,0.41801951]
[1644226703874,0.21,42301.0,42300.0,0.11761951]
[1644226704316,0.26,42301.0,42300.0,0.11761951]
[1644226704519,0.21,42301.0,42300.0,0.11761951]
[1644226704717,0.21,42301.0,42297.0,0.25323008]
[1644226704718,0.19372242,42300.0,42297.0,0.25323008]
[1644226704918,0.19372242,42300.0,42298.0,0.0005333]
[1644226705116,0.21,42301.0,42297.0,0.24859078]
[1644226705922,0.12347363,42309.0,42298.0,0.628729]
[1644226706118,0.05,42310.0,42298.0,0.3001726]
[1644226706119,0.23585664,42307.0,42298.0,0.3001726]
[1644226706318,0.05,42310.0,42305.0,0.07409395]
[1644226706918,0.15,42310.0,42309.0,0.21431389]
[1644226707220,0.15,42310.0,42306.0,0.19201045]
[1644226707221,0.1,42310.0,42306.0,0.19201045]
[1644226707421,0.1,42310.0,42290.0,0.0041]
[1644226707422,0.3,42309.0,42290.0,0.0041]
[1644226707618,0.29983018,42310.0,42290.0,0.0041]
[1644226707619,0.05,42307.0,42290.0,0.28536029]
[1644226707866,0.05,42311.0,42291.0,0.0435]
[1644226708070,0.30337066,42311.0,42300.0,0.21818424]
[1644226708268,0.30337066,42311.0,42305.0,0.08213372]
[1644226708269,0.059134,42307.0,42305.0,0.08213372]
[1644226708469,0.059134,42307.0,42300.0,0.21818424]
[1644226708865,0.059134,42307.0,42300.0,0.46288877]
[1644226709066,0.10063979,42308.0,42300.0,0.21818424]
[1644226709668,0.05,42313.0,42300.0,0.21818424]
[1644226709868,0.0006398,42306.0,42301.0,0.07139528]
[1644226710876,0.23828469,42310.0,42309.0,0.08847055]
[1644226711268,0.23828469,42310.0,42300.0,0.71835683]
[1644226711531,0.23828469,42310.0,42300.0,0.5]
[1644226711532,0.27414089,42309.0,42300.0,0.5]
[1644226711728,0.05,42301.0,42300.0,0.5]
[1644226711924,0.33451346,42301.0,42300.0,0.5]
[1644226712323,0.05,42301.0,42300.0,0.5]
[1644226712523,0.33235682,42301.0,42300.0,0.5]
[1644226712722,0.75525356,42301.0,42300.0,0.5]
[1644226713125,0.81439456,42301.0,42300.0,0.5]
[1644226713923,0.63203774,42301.0,42300.0,0.5]
[1644226714125,0.84203774,42301.0,42300.0,0.5]
[1644226714325,0.94203774,42301.0,42300.0,0.5]
[1644226714526,1.1222211,42301.0,42300.0,0.5]
[1644226714726,0.91556305,42301.0,42300.0,0.5]
[1644226714925,0.58537969,42301.0,42300.0,0.5]
[1644226715125,0.37537969,42301.0,42300.0,0.5]
[1644226715367,0.159141,42301.0,42300.0,0.5]
[1644226715966,0.159141,42301.0,42300.0,0.58931688]
[1644226716169,0.1,42301.0,42300.0,0.58931688]
[1644226716370,0.1,42301.0,42296.0,0.3601476]
[1644226717167,0.10063986,42301.0,42296.0,0.3601476]
[1644226717470,0.10063986,42301.0,42298.0,0.08785093]
[1644226717669,0.05,42300.0,42298.0,0.08785093]
[1644226717868,0.10063986,42301.0,42298.0,0.08785093]
[1644226718072,0.1,42301.0,42298.0,0.08785093]
[1644226718373,0.10063985,42301.0,42299.0,0.38483083]
[1644226718774,0.00063985,42301.0,42299.0,0.38483083]
[1644226719029,0.00063985,42301.0,42300.0,0.24986555]
[1644226719217,0.01965095,42309.0,42300.0,0.57859455]
[1644226719421,0.00063984,42302.0,42301.0,0.29814139]
[1644226719620,0.00063984,42302.0,42301.0,0.67037039]
[1644226719821,0.00063984,42302.0,42301.0,0.372229]
[1644226720219,0.00063984,42302.0,42301.0,0.472229]
[1644226720418,0.02040703,42310.0,42303.0,0.05]
[1644226720620,0.01540703,42310.0,42309.0,0.08775941]
[1644226721420,0.01440703,42310.0,42309.0,0.08775941]
[1644226721622,0.24795573,42315.0,42309.0,0.08775941]
[1644226721623,0.19837033,42313.0,42309.0,0.08775941]
[1644226721819,0.00063975,42312.0,42309.0,0.08775941]
[1644226722421,0.00063975,42312.0,42310.0,0.19543295]
[1644226722870,0.19837033,42314.0,42310.0,0.19543295]
[1644226723069,0.00023803,42313.0,42310.0,0.19543295]
[1644226723470,0.00023803,42313.0,42310.0,0.47919583]
[1644226723869,0.00023803,42313.0,42310.0,0.48532943]
[1644226724070,0.19837033,42315.0,42310.0,0.48532943]
[1644226724274,0.19901062,42314.0,42310.0,0.48532943]
[1644226724472,0.19901062,42314.0,42311.0,0.2720285]
[1644226724670,0.00064029,42314.0,42311.0,0.2720285]
[1644226725072,0.19801062,42315.0,42312.0,0.3]
[1644226725273,0.19801062,42315.0,42311.0,0.2720285]
[1644226725473,0.1986509,42315.0,42311.0,0.2720285]
[1644226725673,0.00064028,42315.0,42311.0,0.2720285]
[1644226726531,0.24795573,42318.0,42311.0,0.2720285]
[1644226726924,0.19252169,42319.0,42311.0,0.2720285]
[1644226726925,0.24795573,42317.0,42311.0,0.2720285]
[1644226727121,0.24795573,42318.0,42311.0,0.2720285]
[1644226727522,0.24795573,42317.0,42311.0,0.2720285]
[1644226727924,0.00023747,42317.0,42310.0,0.48364245]
[1644226728724,0.2471932,42319.0,42311.0,0.75]
[1644226728927,0.1,42321.0,42312.0,0.328729]
[1644226729126,0.00064026,42316.0,42313.0,0.43648229]
[1644226729324,0.00064026,42316.0,42315.0,0.328729]
[1644226729727,0.02090709,42326.0,42316.0,0.75]
[1644226730035,0.34737121,42332.0,42320.0,0.75]
[1644226730036,0.1,42332.0,42320.0,0.75]
[1644226730271,0.1,42332.0,42321.0,0.372229]
[1644226730469,0.3,42331.0,42325.0,0.02090709]
[1644226730668,0.1,42332.0,42326.0,0.07308531]
[1644226730669,0.20700802,42330.0,42326.0,0.07308531]
[1644226730870,0.8250894,42335.0,42326.0,0.07308531]
[1644226731070,0.16135661,42334.0,42326.0,0.07308531]
[1644226731267,0.29774676,42336.0,42327.0,0.75]
[1644226731471,0.18665393,42342.0,42327.0,0.75]
[1644226731472,0.18665393,42342.0,42328.0,0.1025722]
[1644226731672,0.21288903,42347.0,42328.0,0.09623223]
[1644226731673,0.29774676,42345.0,42328.0,0.09623223]
[1644226731868,0.29774676,42345.0,42328.0,0.19623223]
[1644226732071,0.10029068,42347.0,42338.0,0.22074753]